bitfinex/quotes_ETHUSD_20250803
["timestamp","ask_amount","ask_price","bid_price","bid_amount"]
[1754221303947,4.432,3491.5,3491.0,0.4534]
[1754221304173,30.0,3492.2,3491.1,0.4749]
[1754221304372,43.0,3492.0,3490.3,0.4749]
[1754221304671,4.432,3491.9,3490.4,0.00961272]
[1754221304870,3.0,3491.8,3491.3,0.4749]
[1754221305071,3.9247,3491.8,3491.2,0.004]
[1754221305375,3.443,3491.8,3491.2,0.004]
[1754221305535,0.9247,3491.7,3491.2,0.004]
[1754221305736,3.0,3491.5,3491.2,0.004]
[1754221305935,4.432,3491.5,3491.2,0.004]
[1754221306238,4.719,3492.3,3491.2,0.004]
[1754221306239,4.433,3491.7,3491.2,0.004]
[1754221306439,4.433,3491.8,3491.3,0.9283]
[1754221306646,4.435,3491.8,3491.4,0.9283]
[1754221306847,30.0,3492.5,3491.5,0.9283]
[1754221307055,7.435,3492.4,3491.6,0.9283]
[1754221307266,3.0,3492.2,3491.6,0.4534]
[1754221307571,4.435,3492.4,3491.7,0.4749]
[1754221307755,4.435,3492.5,3491.7,0.4749]
[1754221308071,0.4817,3492.9,3491.8,0.4534]
[1754221308368,10.0,3493.7,3491.9,0.4749]
[1754221308369,30.0,3493.3,3491.9,0.4749]
[1754221308666,4.44,3493.2,3492.0,0.46299056]
[1754221308872,6.885,3494.2,3492.1,0.4749]
[1754221308873,4.44,3493.1,3492.1,0.4749]
[1754221309056,0.4817,3493.5,3492.2,0.46299276]
[1754221309268,0.4817,3494.0,3492.3,0.4749]
[1754221309461,4.44,3493.6,3492.4,1.0034]
[1754221309690,0.4817,3493.9,3491.7,0.55958695]
[1754221309901,7.3812,3494.3,3492.6,0.55]
[1754221310212,4.441,3494.2,3492.8,0.55]
[1754221310361,30.0,3494.0,3492.8,0.14937738]
[1754221310883,0.9638,3493.9,3492.8,0.14937738]
[1754221311080,5.4058,3493.8,3492.8,0.14937738]
[1754221311481,3.42322295,3494.2,3492.8,0.14937738]
[1754221311647,4.442,3493.8,3492.9,0.9342]
[1754221311848,4.442,3493.8,3492.9,0.4549]
[1754221312049,4.442,3493.8,3493.0,0.4793]
[1754221312489,0.1432,3493.1,3493.0,0.4793]
[1754221312876,0.1432,3493.1,3493.0,0.9342]
[1754221314961,0.1432,3493.1,3493.0,0.4793]
[1754221317673,0.1432,3493.1,3492.7,0.4549]
[1754221317873,0.1432,3493.1,3492.8,0.9342]
[1754221318074,0.1432,3493.1,3492.8,0.4549]
[1754221318270,0.1432,3493.1,3492.9,0.4793]
[1754221319194,0.1432,3493.1,3492.6,0.55]
[1754221319430,0.1432,3493.1,3492.6,1.0293]
[1754221319699,0.4962,3493.0,3492.7,0.16274]
[1754221319858,0.4962,3492.9,3492.7,0.16274]
[1754221320062,0.1432,3492.8,3492.4,0.4793]
[1754221322786,0.1432,3492.8,3492.5,0.4793]
[1754221323708,0.1432,3492.8,3492.3,0.4793]
[1754221323864,0.1432,3492.8,3492.6,0.94378803]
[1754221324064,0.1432,3492.9,3492.7,0.9342]
[1754221324269,0.1432,3492.9,3492.8,0.4793]
[1754221324619,4.433,3493.8,3492.8,0.4793]
[1754221324620,10.15,3494.8,3492.8,0.9342]
[1754221324804,6.883,3495.5,3492.9,1.49377123]
[1754221325000,0.1432,3493.6,3493.1,0.1432]
[1754221325201,0.1432,3493.6,3493.2,1.49377478]
[1754221325517,0.1432,3493.6,3493.4,0.55]
[1754221325699,0.4962,3495.3,3493.5,0.00957047]
[1754221325907,0.4962,3495.9,3494.2,0.55]
[1754221326101,0.1432,3495.0,3494.5,0.1432]
[1754221326301,0.1432,3495.1,3494.6,1.49374611]
[1754221326504,0.1432,3495.1,3494.7,0.9342]
[1754221326803,0.1432,3495.1,3494.8,0.00954386]
[1754221327116,0.1432,3495.1,3494.9,0.9342]
[1754221327914,0.1432,3495.1,3495.0,0.00953976]
[1754221328085,0.1432,3495.1,3495.0,0.48883976]
[1754221328711,0.1432,3495.1,3494.7,0.4793]
[1754221329017,0.1432,3495.1,3494.8,0.17910941]
[1754221329215,0.1432,3495.1,3494.8,0.65840941]
[1754221329510,0.1432,3495.1,3494.8,1.11330941]
[1754221330576,0.9638,3495.0,3494.1,4.432]
[1754221330783,0.1432,3494.8,3494.3,0.6932]
[1754221330977,0.1432,3494.8,3494.4,0.4793]
[1754221331203,0.1432,3494.8,3494.4,0.9342]
[1754221331423,0.1432,3494.8,3494.5,0.9342]
[1754221331713,0.1432,3494.8,3494.6,0.64204]
[1754221332088,0.1432,3494.8,3494.6,1.09694]
[1754221332311,0.1432,3494.8,3494.6,0.64204]
[1754221332718,0.1432,3494.8,3494.6,0.16274]
[1754221335003,0.1432,3495.1,3494.7,0.9437459]
[1754221335196,0.1432,3495.1,3494.8,0.9342]
[1754221335529,0.1432,3495.1,3494.9,0.4793]
[1754221335887,0.1432,3495.1,3495.0,0.00953976]
[1754221336085,0.001,3495.2,3495.0,0.9342]
[1754221336299,0.001,3495.2,3495.1,0.4793]
[1754221336501,0.001,3495.2,3494.9,0.1432]
[1754221336707,0.4972,3495.2,3494.6,0.4549]
[1754221337031,0.1432,3495.1,3494.7,0.14842]
[1754221337390,0.1432,3495.1,3494.7,0.62772]
[1754221338296,0.1432,3495.1,3494.7,0.14842]
[1754221338502,0.1432,3495.1,3494.6,0.1432]
[1754221338709,0.9638,3495.0,3494.6,0.1432]
[1754221338910,0.9638,3494.9,3494.3,0.55]
[1754221339109,0.1432,3494.8,3494.3,0.6932]
[1754221339388,0.4962,3494.7,3494.3,0.6932]
[1754221339596,0.4962,3494.7,3494.4,0.56045]
[1754221340526,0.8996,3494.7,3494.4,0.56045]
[1754221340687,0.1432,3494.6,3494.4,0.56045]
[1754221340886,0.6108,3494.6,3494.4,0.56045]
[1754221341413,0.1432,3494.6,3494.4,0.56045]
[1754221342022,0.001,3495.2,3494.5,1.4861]
[1754221342186,0.1432,3495.0,3494.6,0.204655]
[1754221342386,0.1432,3495.0,3494.7,0.9361]
[1754221342720,0.1432,3495.0,3494.7,0.4399]
[1754221343026,0.1432,3495.0,3494.8,0.4962]
[1754221344628,0.001,3495.2,3494.8,0.4962]
[1754221344830,0.1432,3495.1,3494.8,0.4962]
[1754221350439,0.1432,3495.1,3494.7,0.4399]
[1754221350745,0.1432,3495.1,3494.7,0.9361]
[1754221350944,0.1432,3495.1,3494.8,0.1833955]
[1754221351364,0.6108,3495.1,3494.8,0.1833955]
[1754221351568,0.5752,3495.1,3494.5,0.6932]
[1754221351767,1.0428,3495.1,3494.5,0.6932]
[1754221353468,0.1432,3495.1,3494.6,0.4962]
[1754221353834,0.1432,3495.1,3494.7,0.9361]
[1754221354774,0.1432,3495.1,3494.7,0.4962]
[1754221354950,0.1432,3495.1,3494.8,0.16293]
[1754221355658,0.1432,3495.1,3494.8,0.65913]
[1754221356076,0.1432,3495.1,3494.8,0.16293]
[1754221357772,0.1432,3495.1,3494.8,3.16293]
[1754221362051,0.1432,3495.1,3494.8,0.16293]
[1754221362251,0.1432,3495.1,3494.9,4.429]
[1754221368899,0.14046234,3495.1,3494.9,4.429]
[1754221370231,0.14146234,3495.1,3494.9,4.429]
[1754221371732,0.14146234,3495.1,3495.0,0.00953976]
[1754221371912,0.14146234,3495.1,3495.0,0.45339374]
[1754221372519,0.14146234,3495.1,3495.0,0.44385398]
[1754221372520,0.001,3495.1,3495.0,0.44385398]
[1754221378959,0.001,3495.1,3495.0,0.99385398]
[1754221379252,0.001,3495.1,3495.0,1.14659286]
[1754221382913,0.001,3495.1,3495.0,4.13705398]
[1754221383244,0.001,3495.1,3495.0,7.00782318]
[1754221383432,0.001,3495.1,3495.0,7.1129463]
[1754221384339,0.001,3495.1,3495.0,4.25171598]
[1754221384638,0.001,3495.1,3495.0,4.26125486]
[1754221387058,0.001,3495.1,3495.0,7.12248518]
[1754221387259,0.001,3495.1,3495.0,7.1129463]
[1754221388246,0.001,3495.2,3495.1,6.41114846]
[1754221388558,0.001,3495.2,3495.1,12.00034309]
[1754221388964,0.001,3495.2,3495.1,16.74491124]
[1754221389184,0.001,3495.2,3495.1,13.88376278]
[1754221389363,0.001,3495.2,3495.1,14.09424399]
[1754221392432,0.001,3495.2,3495.1,14.20890099]
[1754221392959,0.001,3495.2,3495.1,17.07004945]
[1754221393473,0.001,3495.5,3495.4,6.4109029]
[1754221393659,0.001,3495.5,3495.4,17.7119029]
[1754221394177,0.001,3495.5,3495.4,22.5982639]
[1754221394977,0.001,3495.6,3495.5,6.41082105]
[1754221395546,0.001,3495.6,3495.5,11.26749635]
[1754221395872,0.001,3495.6,3495.5,14.13574342]
[1754221396873,0.001,3495.6,3495.5,14.28220693]
[1754221397242,0.001,3495.6,3495.5,14.13574342]
[1754221398537,0.001,3495.6,3495.5,18.55874342]
[1754221399180,0.001,3495.6,3495.5,18.70506325]
[1754221399338,0.001,3497.8,3495.7,0.55]
[1754221399538,0.001,3497.8,3495.9,0.55]
[1754221399739,0.001,3497.8,3496.3,0.6932]
[1754221399944,0.001,3497.8,3496.3,5.1152]
[1754221400146,0.001,3497.8,3496.3,5.12471228]
[1754221400373,0.001,3497.8,3496.3,6.10170595]
[1754221400878,0.001,3497.8,3496.3,9.10170595]
[1754221402173,0.001,3497.8,3496.3,9.41964641]
[1754221402364,0.001,3497.8,3496.3,13.84164641]
[1754221403872,0.001,3497.8,3496.3,9.41964641]
[1754221404052,0.001,3497.8,3496.3,13.84164641]
[1754221407301,0.001,3497.8,3496.3,9.41964641]
[1754221407509,0.001,3497.8,3496.3,13.84064641]
[1754221408888,0.001,3497.8,3496.3,10.84064641]
[1754221411685,0.001,3497.8,3496.3,5.86964641]
[1754221411891,0.001,3497.8,3496.3,9.15994046]
[1754221413503,0.001,3497.8,3496.3,4.73994046]
[1754221413673,0.03673674,3497.8,3496.3,9.15994046]
[1754221413870,0.001,3497.8,3496.3,9.15994046]
[1754221414786,0.03573777,3497.7,3496.3,9.15994046]
[1754221415807,0.03573879,3497.6,3496.3,9.15994046]
[1754221416004,0.55,3497.5,3496.3,4.73994046]
[1754221416208,1.75474083,3497.4,3496.3,9.15994046]
[1754221417107,0.03574083,3497.4,3496.3,9.15994046]
[1754221418580,0.03574185,3497.3,3496.3,9.15994046]
[1754221419505,0.55,3497.5,3496.3,9.15994046]
[1754221419710,1.719,3497.4,3496.3,9.15994046]
[1754221420574,0.55,3497.5,3496.3,9.15994046]
[1754221420922,1.75474083,3497.4,3496.3,9.15994046]
[1754221421979,1.72,3497.2,3496.3,4.73994046]
[1754221422179,1.719,3496.6,3496.3,4.73994046]
[1754221422385,0.2098973,3496.4,3496.3,4.73994046]
[1754221423486,0.001,3496.4,3496.3,4.73994046]
[1754221433394,0.001,3496.4,3496.3,9.15894046]
[1754221442934,0.001,3496.4,3496.3,9.27360446]
[1754221444036,0.001,3496.4,3496.3,9.15894046]
[1754221445641,0.001,3496.4,3496.3,4.73994046]
[1754221460192,0.1442,3496.4,3496.3,4.73994046]
[1754221464397,0.1442,3496.4,3496.3,5.74144701]
[1754221464544,0.1442,3496.4,3496.3,4.73994046]
[1754221468386,0.4311,3496.4,3496.3,4.73994046]
[1754221468546,0.1442,3496.4,3496.3,4.73994046]
[1754221473288,0.1442,3496.4,3496.3,4.88414046]
[1754221474192,0.1442,3496.4,3496.3,4.73994046]
[1754221483506,0.1442,3496.4,3496.3,5.60006246]
[1754221483798,0.1442,3496.4,3496.3,4.73994046]
[1754221492609,3.1442,3496.4,3496.3,4.73994046]
[1754221494603,4.5532,3496.4,3496.3,4.73994046]
[1754221495010,37.5532,3496.4,3496.3,4.73994046]
[1754221501902,40.92815267,3496.4,3496.3,4.73994046]
[1754221502531,3.0,3495.9,3495.6,0.002]
[1754221502733,3.0,3495.7,3495.6,0.002]
[1754221503248,3.17895821,3495.7,3495.6,0.002]
[1754221505169,33.17895821,3495.7,3495.6,0.002]
[1754221505386,33.1432,3495.7,3495.6,0.002]
[1754221509746,35.29993508,3495.7,3495.6,0.002]
[1754221510274,35.84993508,3495.7,3495.6,0.002]
[1754221514049,36.51815267,3495.7,3495.6,0.002]
[1754221514387,35.84993508,3495.7,3495.6,0.002]
[1754221514551,4.5502,3495.7,3495.6,0.002]
[1754221515183,0.1432,3495.7,3495.6,0.002]
[1754221515481,4.5502,3495.7,3495.6,0.002]
[1754221516186,0.1432,3495.7,3495.6,0.002]
[1754221516388,7.5502,3495.7,3495.6,0.002]
[1754221517905,3.1432,3495.7,3495.6,0.002]
[1754221518102,7.5502,3495.7,3495.6,0.002]
[1754221518735,3.1432,3495.7,3495.6,0.002]
[1754221518934,3.1432,3495.7,3495.6,0.118719]
[1754221525941,2.17808662,3496.7,3495.6,0.118719]
[1754221526188,0.1432,3496.1,3495.7,0.00952012]
[1754221526469,0.1432,3496.1,3495.6,0.261919]
[1754221526692,0.1432,3496.1,3495.8,0.00952325]
[1754221527298,0.1432,3496.1,3495.6,0.261919]
[1754221527299,0.1432,3496.1,3495.7,0.55952101]
[1754221527445,2.17808662,3496.7,3495.7,0.55]
[1754221527640,0.1432,3496.5,3496.0,0.1432]
[1754221527874,0.001,3496.8,3495.8,0.0095163]
[1754221528091,0.1442,3496.8,3496.3,0.6932]
[1754221528266,0.001,3496.8,3496.3,0.6932]
[1754221532699,0.001,3496.8,3496.3,1.05807361]
[1754221532901,0.001,3496.8,3496.3,0.70271317]
[1754221533393,0.001,3496.8,3496.3,9.83578463]
[1754221534695,0.001,3496.8,3496.3,5.43278463]
[1754221534912,0.001,3496.8,3496.3,9.83478463]
[1754221536497,0.001,3496.8,3496.3,9.94942163]
[1754221536703,0.001,3496.8,3496.3,10.94436379]
[1754221538619,0.001,3496.8,3496.3,6.54236379]
[1754221539026,0.001,3496.8,3496.3,10.94336379]
[1754221539336,0.001,3496.8,3496.3,5.99236379]
[1754221539535,0.001,3496.8,3496.3,5.84916379]
[1754221544121,0.001,3496.8,3496.3,4.85422163]
[1754221545753,0.001,3496.8,3496.3,4.73958463]
[1754221555202,0.001,3496.8,3496.3,4.74909691]
[1754221555585,0.001,3496.8,3496.3,4.73958463]
[1754221558307,0.001,3496.8,3496.3,5.43278463]
[1754221558512,0.001,3496.8,3496.3,6.42743099]
[1754221560719,0.001,3496.8,3496.3,9.42743099]
[1754221561107,0.001,3496.8,3496.3,12.28759745]
[1754221561610,0.001,3496.8,3496.6,0.55]
[1754221561844,0.001,3496.8,3496.7,7.95750499]
[1754221562116,0.001,3496.8,3496.7,13.62507912]
[1754221564314,0.001,3497.2,3496.8,3.55]
[1754221564511,0.001,3497.2,3497.0,3.55]
[1754221564707,0.001,3497.2,3497.1,7.398]
[1754221564913,0.001,3497.2,3497.1,7.5412]
[1754221565113,0.001,3497.2,3497.1,13.56086221]
[1754221565677,0.001,3497.8,3497.1,13.56086221]
[1754221565678,0.001,3497.8,3497.2,3.55]
[1754221565902,0.001,3497.8,3497.7,0.6932]
[1754221566217,0.001,3497.8,3497.7,8.0902]
[1754221566394,0.001,3497.8,3497.7,12.82524401]
[1754221566593,0.001,3497.8,3497.7,14.10776841]
[1754221568621,0.001,3497.8,3497.7,11.22237041]
[1754221569115,0.001,3497.8,3497.7,4.73504401]
[1754221569620,0.001,3497.8,3497.7,9.13404401]
[1754221569818,0.001,3497.8,3497.7,4.73504401]
[1754221570008,0.001,3497.8,3497.7,9.13404401]
[1754221570204,0.001,3497.8,3497.7,4.73504401]
[1754221570421,0.001,3497.8,3497.7,9.13604401]
[1754221570617,0.001,3497.8,3497.7,4.73504401]
[1754221573621,0.001,3497.8,3497.7,4.74452767]
[1754221573809,0.001,3497.8,3497.7,5.64939678]
[1754221575627,0.001,3497.8,3497.7,6.19939678]
[1754221576645,0.001,3497.8,3497.7,10.05339678]
[1754221577899,0.001,3497.8,3497.7,5.64939678]
[1754221578100,0.001,3497.8,3497.7,10.05339678]
[1754221578501,0.001,3497.8,3497.7,10.16800978]
[1754221581135,0.001,3497.8,3497.7,5.76400978]
[1754221581335,0.001,3497.8,3497.7,10.16500978]
[1754221583803,0.001,3497.8,3497.7,10.71500978]
[1754221584014,0.001,3497.8,3497.7,10.85820978]
[1754221585818,0.001,3497.8,3497.7,13.85820978]
[1754221586411,0.001,3498.2,3497.8,3.55]
[1754221586627,0.001,3498.2,3498.0,3.55]
[1754221586935,0.001,3498.2,3498.1,4.55067637]
[1754221587508,0.001,3498.2,3498.1,4.66525437]
[1754221587710,0.001,3498.2,3498.1,5.21525437]
[1754221587925,0.001,3498.2,3498.1,6.49200553]
[1754221588243,0.001,3498.2,3498.1,6.48252916]
[1754221589951,0.001,3498.2,3498.1,9.48252916]
[1754221590315,0.001,3498.2,3498.1,9.48752916]
[1754221591523,0.001,3498.2,3498.1,12.34622387]
[1754221592628,0.001,3498.2,3498.1,12.48943686]
[1754221593320,0.001,3498.9,3498.8,6.40812278]
[1754221593663,0.001,3498.9,3498.8,15.46981228]
[1754221594679,0.001,3498.9,3498.8,15.61301228]
[1754221595168,0.001,3498.9,3498.8,18.47113506]
[1754221595521,0.001,3498.9,3498.8,14.06413506]
[1754221595740,0.001,3498.9,3498.8,15.61101228]
[1754221596047,0.001,3498.9,3498.8,18.46913506]
[1754221596463,0.001,3498.9,3498.8,18.58366706]
[1754221597243,0.001,3499.3,3499.0,3.40795941]
[1754221597464,0.001,3499.3,3499.0,13.26457916]
[1754221597671,0.001,3499.3,3499.0,13.39832206]
[1754221598490,0.001,3499.3,3499.0,13.51284906]
[1754221598940,0.001,3499.3,3499.2,3.40779606]
[1754221599260,0.001,3499.3,3499.2,10.80879606]
[1754221599459,0.001,3499.3,3499.2,12.58886057]
[1754221600873,0.001,3499.3,3499.2,9.73106451]
[1754221601862,0.001,3499.3,3499.2,12.58786057]
[1754221602253,0.001,3499.3,3499.2,8.18786057]
[1754221602576,0.001,3499.3,3499.2,9.73006451]
[1754221602874,0.001,3499.3,3499.2,4.78006451]
[1754221603074,0.001,3499.3,3499.2,7.5432]
[1754221603269,0.001,3499.3,3499.2,8.0932]
[1754221603462,0.001,3499.3,3499.2,8.207736]
[1754221603975,0.001,3499.3,3499.2,3.807736]
[1754221604177,0.001,3499.3,3499.2,8.207736]
[1754221604355,0.001,3499.3,3499.2,9.27292587]
[1754221604873,0.001,3499.3,3499.2,4.87292587]
[1754221605079,0.001,3499.3,3499.2,8.206736]
[1754221607081,0.001,3499.3,3499.2,8.205736]
[1754221607283,0.001,3499.3,3499.2,7.654736]
[1754221607446,0.001,3499.3,3499.2,0.257736]
[1754221607644,0.001,3499.3,3499.2,4.654736]
[1754221608173,0.001,3499.3,3499.2,5.204736]
[1754221608474,0.001,3499.3,3499.2,4.654736]
[1754221608976,0.001,3499.3,3499.2,0.257736]
[1754221609199,0.001,3499.3,3499.2,4.511536]
[1754221610056,0.001,3499.3,3499.2,4.397]
[1754221612212,0.001,3499.3,3499.1,0.114568]
[1754221612361,0.001,3499.3,3499.2,4.396]
[1754221614180,0.001,3499.3,3499.2,4.395]
[1754221614922,0.001,3499.3,3499.2,4.394]
[1754221616544,0.001,3499.3,3499.2,5.3948572]
[1754221616705,0.001,3499.3,3499.2,8.5380572]
[1754221618498,0.001,3499.3,3499.2,8.6526052]
[1754221621029,0.001,3499.3,3499.2,11.51040126]
[1754221622066,0.001,3499.3,3499.2,8.6526052]
[1754221623276,0.001,3499.3,3499.2,4.2586052]
[1754221623469,0.001,3499.3,3499.2,8.6526052]
[1754221625130,0.001,3499.7,3499.4,0.55]
[1754221625368,0.001,3499.7,3499.6,0.55]
[1754221625669,0.001,3499.7,3499.6,0.6932]
[1754221626262,0.001,3499.7,3499.6,3.6932]
[1754221626766,0.001,3499.7,3499.6,4.5372]
[1754221627067,0.001,3499.7,3499.6,0.1432]
[1754221627255,0.001,3499.7,3499.4,4.399]
[1754221627454,0.001,3499.7,3499.5,4.415]
[1754221627831,0.001,3499.7,3499.3,1.525742]
[1754221628165,0.001,3499.7,3499.4,4.415]
[1754221628568,0.001,3499.7,3499.3,1.525742]
[1754221628774,0.001,3499.7,3499.4,4.415]
[1754221629275,0.001,3499.7,3499.5,4.42444689]
[1754221629434,0.001,3499.7,3499.5,5.01001889]
[1754221631296,0.001,3499.7,3499.5,4.415]
[1754221631699,0.001,3499.7,3499.6,0.00944573]
[1754221631995,0.001,3499.7,3499.6,0.1432]
[1754221632915,0.001,3499.7,3499.6,0.55944485]
[1754221633204,0.001,3499.7,3499.6,0.6932]
[1754221633423,0.001,3499.7,3499.6,1.3565942]
[1754221636581,0.001,3499.7,3499.6,4.3565942]
[1754221636782,0.001,3499.7,3499.6,4.36603905]
[1754221636982,0.001,3499.7,3499.6,4.3565942]
[1754221639309,0.001,3499.7,3499.6,4.36603905]
[1754221639511,0.001,3499.7,3499.6,7.22350847]
[1754221639714,0.001,3499.7,3499.6,4.3565942]
[1754221640023,0.001,3499.7,3499.6,4.36603905]
[1754221640525,0.001,3499.7,3499.6,7.22350847]
[1754221640725,0.001,3499.7,3499.6,7.21406362]
[1754221641623,0.001,3499.7,3499.6,7.32857662]
[1754221643429,0.001,3499.7,3499.6,7.54005008]
[1754221646113,0.001,3499.7,3499.6,11.95205008]
[1754221648141,0.001,3499.7,3499.6,11.39905008]
[1754221648842,0.001,3499.7,3499.6,11.94905008]
[1754221649400,0.001,3499.7,3499.6,9.09158066]
[1754221651032,0.001,3499.7,3499.6,11.94905008]
[1754221651432,0.001,3499.7,3499.6,9.09158066]
[1754221652163,0.001,3499.7,3499.6,11.94905008]
[1754221652934,0.001,3499.7,3499.6,18.81605008]
[1754221654073,0.001,3499.7,3499.6,14.40705008]
[1754221654273,0.001,3499.7,3499.6,18.81405008]
[1754221654631,0.001,3499.9,3499.8,6.40730613]
[1754221654877,0.001,3499.9,3499.8,13.28944175]
[1754221655449,0.001,3499.9,3499.8,13.43264175]
[1754221656772,0.001,3499.9,3499.8,13.54711375]
[1754221657539,0.001,3500.1,3500.0,3.40714285]
[1754221657740,0.001,3500.1,3500.0,10.82214285]
[1754221657953,0.001,3500.1,3500.0,12.60576851]
[1754221658155,0.001,3500.3,3500.2,6.4069796]
[1754221658351,0.001,3500.3,3500.2,10.8209796]
[1754221658555,0.001,3501.5,3501.1,0.55]
[1754221658878,0.001,3501.5,3501.3,0.55]
[1754221659080,0.001,3501.5,3501.4,9.60065015]
[1754221659385,0.001,3501.5,3501.4,9.59124113]
[1754221664880,0.001,3501.5,3501.4,9.70569913]
[1754221665083,0.001,3501.5,3501.4,9.91517464]
[1754221670780,0.001,3501.5,3501.4,5.50117464]
[1754221670984,0.001,3501.5,3501.4,9.90317464]
[1754221671806,0.001,3501.5,3501.4,9.69269913]
[1754221675329,0.001,3501.5,3501.4,5.29169913]
[1754221675490,0.001,3501.5,3501.4,9.69069913]
[1754221676334,0.001,3501.5,3501.4,9.68869913]
[1754221681730,0.001,3501.5,3501.4,12.54469958]
[1754221682091,0.001,3501.5,3501.4,12.75685688]
[1754221686974,0.001,3501.5,3501.4,12.75285688]
[1754221687669,0.001,3501.5,3501.4,9.89685643]
[1754221687961,0.001,3501.5,3501.4,8.35985688]
[1754221688163,0.001,3501.5,3501.4,12.20585688]
[1754221688361,0.001,3501.5,3501.4,8.35985688]
[1754221688565,0.001,3501.5,3501.4,9.90785643]
[1754221689469,0.001,3501.5,3501.4,5.50385643]
[1754221689778,0.001,3501.5,3501.4,9.90885643]
[1754221689984,0.001,3501.5,3501.4,5.50385643]
[1754221690180,0.001,3501.5,3501.4,9.90785643]
[1754221691984,0.001,3501.5,3501.4,12.76385688]
[1754221692487,0.001,3501.5,3501.4,9.90785643]
[1754221693581,0.001,3501.5,3501.4,12.76385688]
[1754221693886,0.001,3501.5,3501.4,12.62065688]
[1754221694184,0.001,3501.5,3501.4,12.76385688]
[1754221695290,0.001,3501.5,3501.4,9.90485643]
[1754221695467,0.001,3501.5,3501.4,12.76085688]
[1754221698555,0.14470304,3504.3,3501.8,3.55]
[1754221698705,0.14470304,3504.3,3501.8,8.88656421]
[1754221699031,0.14470304,3504.3,3501.8,9.01956423]
[1754221699797,0.14470304,3504.3,3501.8,9.13400923]
[1754221701848,0.14470304,3504.3,3501.8,11.98968345]
[1754221702550,0.14470304,3504.3,3501.8,9.13400923]
[1754221703298,0.14470304,3504.3,3501.8,11.98968345]
[1754221704062,0.001,3504.5,3501.8,11.98968345]
[1754221704217,1.93447504,3504.5,3501.8,11.98968345]
[1754221704549,1.721,3504.5,3501.8,16.22968345]
[1754221705004,0.001,3504.5,3501.8,16.22968345]
[1754221706183,10.001,3504.5,3501.8,16.22968345]
[1754221706586,0.001,3502.3,3501.8,16.22968345]
[1754221708283,0.001,3502.3,3501.9,6.40559267]
[1754221708612,0.001,3502.3,3501.9,13.51383974]
[1754221709607,0.001,3502.3,3501.9,13.62827574]
[1754221710273,0.001,3502.3,3501.9,18.02127574]
[1754221712022,0.001,3502.3,3501.9,13.78127574]
[1754221712915,0.001,3502.3,3502.0,2.85551113]
[1754221713079,0.001,3502.3,3502.0,8.87185775]
[1754221713405,0.001,3502.3,3502.0,6.14935072]
[1754221713702,0.001,3502.3,3502.0,9.00486185]
[1754221714211,0.001,3502.3,3502.2,3.55]
[1754221714401,0.001,3502.3,3502.2,4.90112979]
[1754221714568,0.001,3502.3,3502.2,5.04352979]
[1754221715111,0.001,3502.3,3502.2,5.15796579]
[1754221715280,0.001,3502.3,3502.2,5.16735761]
[1754221716803,0.001,3502.3,3502.2,9.54996579]
[1754221717687,0.001,3502.3,3502.2,5.15796579]
[1754221718014,0.001,3502.3,3502.2,8.198836]
[1754221722296,0.001,3502.3,3502.2,11.05418406]
[1754221724126,0.001,3502.3,3502.2,8.198836]
[1754221726542,0.001,3502.3,3502.2,11.05418406]
[1754221726842,0.001,3502.3,3502.2,8.198836]
[1754221727045,0.001,3502.3,3502.2,11.05418406]
[1754221727407,0.001,3502.3,3502.2,12.44515316]
[1754221728799,0.001,3502.3,3502.2,9.5898051]
[1754221731037,0.001,3502.3,3502.2,12.44515316]
[1754221732726,0.001,3502.3,3502.2,9.5898051]
[1754221733338,0.001,3502.3,3502.2,12.44515316]
[1754221733846,0.001,3502.3,3502.2,9.5898051]
[1754221734007,0.001,3502.3,3502.2,9.5888051]
[1754221736324,0.001,3502.3,3502.2,12.44415316]
[1754221737240,0.001,3502.3,3502.2,16.68415316]
[1754221739054,0.001,3502.3,3502.2,23.54615316]
[1754221739631,0.001,3502.3,3502.2,19.30615316]
[1754221742339,0.001,3502.3,3502.2,23.54615316]
[1754221742635,0.001,3502.3,3502.2,14.91515316]
[1754221742842,0.001,3502.3,3502.2,23.54615316]
[1754221743043,0.001,3502.3,3502.2,19.30615316]
[1754221743444,0.001,3502.3,3502.2,23.54615316]
[1754221744059,0.001,3502.3,3502.2,11.5098051]
[1754221744365,0.001,3502.3,3502.2,16.4508051]
[1754221744859,0.001,3502.3,3502.2,15.9008051]
[1754221745061,0.001,3502.3,3502.2,12.0598051]
[1754221745264,0.001,3502.3,3502.2,15.8998051]
[1754221746044,0.001,3502.3,3502.2,16.4498051]
[1754221756480,0.001,3502.3,3502.2,12.0598051]
[1754221756684,0.001,3502.3,3502.2,16.4498051]
[1754221758496,0.001,3502.3,3502.2,12.0598051]
[1754221758694,0.001,3502.3,3502.2,8.5098051]
[1754221758984,0.001,3502.3,3502.2,15.058836]
[1754221764193,0.001,3502.3,3502.2,7.668836]
[1754221764390,0.001,3502.3,3502.2,11.366436]
[1754221764788,0.001,3502.3,3502.2,6.976436]
[1754221764989,0.001,3502.3,3502.2,11.365436]
[1754221765499,0.001,3502.3,3502.2,6.976436]
[1754221765703,0.001,3502.3,3502.2,11.366436]
[1754221766775,0.001,3502.3,3502.2,4.504436]
[1754221767110,0.001,3502.3,3502.2,0.114436]